[Event "Titled Tuesday Blitz July 25 Late 2023"]
[White "Toniutti, Ezio"]
[Black "Yu, Jennifer"]
[WhiteFideId "113034"]
[BlackFideId "2078341"]
[WhiteElo "2509"]
[BlackElo "2367"]
[Result "0-1"]
[Round "7"]
[TimeControl "180+2"]
[Date "2023.07.25"]
[WhiteClock "0:00:05"]
[BlackClock "0:00:13"]
[Board "90"]

1. d4 {[%clk 0:02:56]}  d5 {[%clk 0:02:57]} 2. c4 {[%clk 0:02:56]}  e6 {[%clk 0:02:57]} 3. Nf3 {[%clk 0:02:54]}  Nf6 {[%clk 0:02:56]} 4. g3 {[%clk 0:02:53]}  Bb4+ {[%clk 0:02:54]} 5. Bd2 {[%clk 0:02:53]}  Be7 {[%clk 0:02:54]} 6. Bg2 {[%clk 0:02:49]}  O-O {[%clk 0:02:49]} 7. O-O {[%clk 0:02:46]}  Nbd7 {[%clk 0:02:49]} 8. Qc2 {[%clk 0:02:45]}  Ne4 {[%clk 0:02:44]} 9. Bf4 {[%clk 0:02:42]}  c6 {[%clk 0:02:42]} 10. Nfd2 {[%clk 0:02:39]}  f5 {[%clk 0:02:43]} 11. f3 {[%clk 0:02:39]}  Nxd2 {[%clk 0:02:37]} 12. Nxd2 {[%clk 0:02:40]}  Bf6 {[%clk 0:02:36]} 13. Be3 {[%clk 0:02:09]}  Re8 {[%clk 0:02:02]} 14. Bf2 {[%clk 0:02:06]}  Nf8 {[%clk 0:01:51]} 15. Rad1 {[%clk 0:02:02]}  Ng6 {[%clk 0:01:51]} 16. Kh1 {[%clk 0:01:50]}  f4 {[%clk 0:01:48]} 17. e4 {[%clk 0:01:38]}  fxe3 {[%clk 0:01:12]} 18. Bxe3 {[%clk 0:01:35]}  e5 {[%clk 0:01:07]} 19. dxe5 {[%clk 0:01:22]}  Nxe5 {[%clk 0:01:08]} 20. Bg1 {[%clk 0:01:19]}  Be6 {[%clk 0:00:55]} 21. Rfe1 {[%clk 0:01:11]}  Bf7 {[%clk 0:00:50]} 22. f4 {[%clk 0:00:58]}  Bg6 {[%clk 0:00:47]} 23. Qb3 {[%clk 0:00:45]}  Nd3 {[%clk 0:00:37]} 24. Rxe8+ {[%clk 0:00:44]}  Qxe8 {[%clk 0:00:38]} 25. cxd5 {[%clk 0:00:42]}  cxd5 {[%clk 0:00:29]} 26. Qxd5+ {[%clk 0:00:42]}  Kh8 {[%clk 0:00:30]} 27. Ne4 {[%clk 0:00:39]}  Rd8 {[%clk 0:00:23]} 28. Nxf6 {[%clk 0:00:33]}  Rxd5 {[%clk 0:00:14]} 29. Nxd5 {[%clk 0:00:13]}  Qe2 {[%clk 0:00:13]} 30. Rf1 {[%clk 0:00:11]}  Be4 {[%clk 0:00:12]} 31. Ne3 {[%clk 0:00:09]}  Bxg2+ {[%clk 0:00:11]} 32. Nxg2 {[%clk 0:00:06]}  Qxf1 {[%clk 0:00:12]} 33. h4 {[%clk 0:00:05]}  Ne1 {[%clk 0:00:09]} 34. Nxe1 {[%clk 0:00:03]}  Qxe1 {[%clk 0:00:10]} 35. Kg2 {[%clk 0:00:04]}  Qe2+ {[%clk 0:00:10]} 36. Bf2 {[%clk 0:00:05]}  Qxb2 {[%clk 0:00:10]} 37. Kf3 {[%clk 0:00:06]}  Qxa2 {[%clk 0:00:11]} 38. g4 {[%clk 0:00:06]}  Qb3+ {[%clk 0:00:11]} 39. Be3 {[%clk 0:00:06]}  a5 {[%clk 0:00:12]} 40. Ke4 {[%clk 0:00:07]}  a4 {[%clk 0:00:12]} 41. f5 {[%clk 0:00:08]}  a3 {[%clk 0:00:13]} 42. g5 {[%clk 0:00:09]}  a2 {[%clk 0:00:13]} 43. Bd4 {[%clk 0:00:10]}  Qc4 {[%clk 0:00:12]} 44. f6 {[%clk 0:00:11]}  gxf6 {[%clk 0:00:12]} 45. gxf6 {[%clk 0:00:10]}  Kg8 {[%clk 0:00:13]} 46. Ke5 {[%clk 0:00:05]}  Kf7 {[%clk 0:00:13]} 0-1


[Site "https://www.chess.com"]

[Event "Titled Tuesday Blitz July 25 Late 2023"]
[White "kripri"]
[Black "Kanakaris, Georgios"]
[BlackFideId "4209460"]
[WhiteElo "2357"]
[BlackElo "2504"]
[Result "1-0"]
[Round "7"]
[TimeControl "180+2"]
[Date "2023.07.25"]
[WhiteClock "0:00:22"]
[BlackClock "0:00:12"]
[Board "91"]

1. d4 {[%clk 0:03:00]}  Nf6 {[%clk 0:02:59]} 2. Bf4 {[%clk 0:03:01]}  d5 {[%clk 0:02:58]} 3. e3 {[%clk 0:03:00]}  c5 {[%clk 0:02:58]} 4. c3 {[%clk 0:03:00]}  Nc6 {[%clk 0:02:58]} 5. Nd2 {[%clk 0:03:00]}  Qb6 {[%clk 0:02:59]} 6. Qb3 {[%clk 0:02:59]}  c4 {[%clk 0:02:59]} 7. Qc2 {[%clk 0:02:58]}  g6 {[%clk 0:02:55]} 8. e4 {[%clk 0:02:53]}  Nxe4 {[%clk 0:02:44]} 9. Nxe4 {[%clk 0:02:52]}  dxe4 {[%clk 0:02:45]} 10. Bxc4 {[%clk 0:02:52]}  Bf5 {[%clk 0:02:39]} 11. Be3 {[%clk 0:02:52]}  Qc7 {[%clk 0:02:34]} 12. Qb3 {[%clk 0:02:32]}  e6 {[%clk 0:02:27]} 13. h3 {[%clk 0:02:15]}  h5 {[%clk 0:02:27]} 14. Ne2 {[%clk 0:02:12]}  Bd6 {[%clk 0:02:26]} 15. d5 {[%clk 0:01:56]}  Ne5 {[%clk 0:02:19]} 16. Bb5+ {[%clk 0:01:56]}  Kf8 {[%clk 0:02:15]} 17. Nd4 {[%clk 0:01:49]}  a6 {[%clk 0:01:55]} 18. Be2 {[%clk 0:01:46]}  exd5 {[%clk 0:01:55]} 19. Nxf5 {[%clk 0:01:40]}  gxf5 {[%clk 0:01:56]} 20. Qxd5 {[%clk 0:01:40]}  Rd8 {[%clk 0:01:56]} 21. Bd4 {[%clk 0:01:30]}  Rh6 {[%clk 0:01:47]} 22. O-O-O {[%clk 0:01:25]}  Nd3+ {[%clk 0:01:44]} 23. Kb1 {[%clk 0:01:19]}  Nf4 {[%clk 0:01:03]} 24. Qc4 {[%clk 0:00:54]}  Qxc4 {[%clk 0:00:49]} 25. Bxc4 {[%clk 0:00:55]}  Nxg2 {[%clk 0:00:48]} 26. Rhg1 {[%clk 0:00:47]}  Rg6 {[%clk 0:00:48]} 27. Be5 {[%clk 0:00:39]}  Be7 {[%clk 0:00:41]} 28. Be2 {[%clk 0:00:33]}  Re6 {[%clk 0:00:24]} 29. Bc7 {[%clk 0:00:22]}  Rxd1+ {[%clk 0:00:23]} 30. Bxd1 {[%clk 0:00:23]}  Ne1 {[%clk 0:00:12]} 31. Rxe1 {[%clk 0:00:22]} 1-0


[Site "https://www.chess.com"]

[Event "Titled Tuesday Blitz July 25 Late 2023"]
[White "only_strong_moves"]
[Black "Korpics, Zsolt"]
[BlackFideId "705241"]
[WhiteElo "2501"]
[BlackElo "2350"]
[Result "0-1"]
[Round "7"]
[TimeControl "180+2"]
[Date "2023.07.25"]
[WhiteClock "0:01:27"]
[BlackClock "0:02:01"]
[Board "92"]

1. d4 {[%clk 0:03:00]}  Nf6 {[%clk 0:02:59]} 2. Nc3 {[%clk 0:03:01]}  d5 {[%clk 0:02:59]} 3. Bf4 {[%clk 0:03:01]}  c5 {[%clk 0:03:00]} 4. e4 {[%clk 0:03:01]}  Nxe4 {[%clk 0:03:00]} 5. Nxe4 {[%clk 0:03:01]}  dxe4 {[%clk 0:03:01]} 6. dxc5 {[%clk 0:03:01]}  Qa5+ {[%clk 0:03:01]} 7. Qd2 {[%clk 0:03:01]}  Qxc5 {[%clk 0:02:57]} 8. O-O-O {[%clk 0:03:01]}  Nc6 {[%clk 0:02:54]} 9. f3 {[%clk 0:02:53]}  Bf5 {[%clk 0:02:26]} 10. Be3 {[%clk 0:02:43]}  Qe5 {[%clk 0:02:19]} 11. f4 {[%clk 0:02:31]}  Qe6 {[%clk 0:02:18]} 12. Bb5 {[%clk 0:02:08]}  Qxa2 {[%clk 0:02:14]} 13. Qc3 {[%clk 0:02:06]}  Qa1+ {[%clk 0:02:05]} 14. Kd2 {[%clk 0:02:07]}  O-O-O+ {[%clk 0:02:06]} 15. Bd4 {[%clk 0:01:28]}  Rxd4+ {[%clk 0:02:03]} 16. Qxd4 {[%clk 0:01:29]}  Qxd1+ {[%clk 0:02:01]} 17. Kxd1 {[%clk 0:01:27]}  Nxd4 {[%clk 0:02:01]} 0-1


[Site "https://www.chess.com"]

[Event "Titled Tuesday Blitz July 25 Late 2023"]
[White "Vifleemskaia, Svetlana"]
[Black "Plotkin, Victor"]
[WhiteFideId "4129490"]
[BlackFideId "2606674"]
[WhiteElo "2334"]
[BlackElo "2499"]
[Result "0-1"]
[Round "7"]
[TimeControl "180+2"]
[Date "2023.07.25"]
[WhiteClock "0:00:00"]
[BlackClock "0:01:10"]
[Board "93"]

1. d4 {[%clk 0:02:51]}  d5 {[%clk 0:02:59]} 2. c4 {[%clk 0:02:50]}  dxc4 {[%clk 0:02:56]} 3. Nf3 {[%clk 0:02:50]}  Nf6 {[%clk 0:02:55]} 4. e3 {[%clk 0:02:49]}  e6 {[%clk 0:02:55]} 5. Bxc4 {[%clk 0:02:49]}  c5 {[%clk 0:02:56]} 6. O-O {[%clk 0:02:46]}  Nc6 {[%clk 0:02:55]} 7. Nc3 {[%clk 0:02:42]}  a6 {[%clk 0:02:55]} 8. d5 {[%clk 0:02:42]}  exd5 {[%clk 0:02:55]} 9. Nxd5 {[%clk 0:02:42]}  Be6 {[%clk 0:02:52]} 10. Nxf6+ {[%clk 0:02:38]}  Qxf6 {[%clk 0:02:52]} 11. Bxe6 {[%clk 0:02:34]}  Qxe6 {[%clk 0:02:51]} 12. Bd2 {[%clk 0:02:20]}  Be7 {[%clk 0:02:51]} 13. Bc3 {[%clk 0:02:19]}  O-O {[%clk 0:02:51]} 14. h3 {[%clk 0:02:13]}  Rfd8 {[%clk 0:02:50]} 15. Qc2 {[%clk 0:02:07]}  Rac8 {[%clk 0:02:38]} 16. b3 {[%clk 0:01:45]}  h6 {[%clk 0:02:33]} 17. Qb2 {[%clk 0:01:45]}  Bf6 {[%clk 0:02:23]} 18. Bxf6 {[%clk 0:01:44]}  Qxf6 {[%clk 0:02:23]} 19. Qxf6 {[%clk 0:01:43]}  gxf6 {[%clk 0:02:24]} 20. Rfd1 {[%clk 0:01:44]}  Kf8 {[%clk 0:02:21]} 21. Kf1 {[%clk 0:01:42]}  Ke7 {[%clk 0:02:21]} 22. Rac1 {[%clk 0:01:36]}  Rxd1+ {[%clk 0:02:19]} 23. Rxd1 {[%clk 0:01:36]}  Ne5 {[%clk 0:02:18]} 24. Ke2 {[%clk 0:01:33]}  b5 {[%clk 0:02:14]} 25. g4 {[%clk 0:01:31]}  c4 {[%clk 0:02:12]} 26. bxc4 {[%clk 0:01:29]}  Rxc4 {[%clk 0:02:12]} 27. Nd4 {[%clk 0:01:28]}  Ra4 {[%clk 0:02:07]} 28. Rd2 {[%clk 0:01:27]}  b4 {[%clk 0:01:57]} 29. Rc2 {[%clk 0:01:21]}  a5 {[%clk 0:01:53]} 30. Nf5+ {[%clk 0:01:20]}  Kd7 {[%clk 0:01:49]} 31. Nxh6 {[%clk 0:01:21]}  Ra3 {[%clk 0:01:42]} 32. f4 {[%clk 0:01:15]}  Nc6 {[%clk 0:01:41]} 33. Nf5 {[%clk 0:01:12]}  a4 {[%clk 0:01:41]} 34. Kd2 {[%clk 0:01:07]}  b3 {[%clk 0:01:36]} 35. axb3 {[%clk 0:01:07]}  Rxb3 {[%clk 0:01:36]} 36. h4 {[%clk 0:00:59]}  a3 {[%clk 0:01:34]} 37. Kc1 {[%clk 0:00:56]}  Nb4 {[%clk 0:01:30]} 38. Rd2+ {[%clk 0:00:35]}  Nd3+ {[%clk 0:01:29]} 39. Kc2 {[%clk 0:00:33]}  Rb2+ {[%clk 0:01:26]} 40. Kxd3 {[%clk 0:00:27]}  Rxd2+ {[%clk 0:01:26]} 41. Kxd2 {[%clk 0:00:27]}  a2 {[%clk 0:01:26]} 42. Ke2 {[%clk 0:00:20]}  a1=Q {[%clk 0:01:26]} 43. Kf3 {[%clk 0:00:21]}  Qh1+ {[%clk 0:01:24]} 44. Kg3 {[%clk 0:00:18]}  Qg1+ {[%clk 0:01:23]} 45. Kf3 {[%clk 0:00:18]}  Ke6 {[%clk 0:01:17]} 46. h5 {[%clk 0:00:18]}  Kd5 {[%clk 0:01:17]} 47. h6 {[%clk 0:00:17]}  Kc4 {[%clk 0:01:15]} 48. Ng3 {[%clk 0:00:11]}  Qd1+ {[%clk 0:01:10]} 49. Ne2 {[%clk 0:00:00]}  Kd3 {[%clk 0:01:10]} 0-1


[Site "https://www.chess.com"]

[Event "Titled Tuesday Blitz July 25 Late 2023"]
[White "Petesch, Gabriel"]
[Black "Krzywda, Andrzej"]
[WhiteFideId "2032465"]
[BlackFideId "1114565"]
[WhiteElo "2570"]
[BlackElo "2418"]
[Result "1-0"]
[Round "7"]
[TimeControl "180+2"]
[Date "2023.07.25"]
[WhiteClock "0:00:14"]
[BlackClock "0:00:00"]
[Board "100"]

1. Nf3 {[%clk 0:02:45]}  d5 {[%clk 0:02:29]} 2. d3 {[%clk 0:02:25]}  c5 {[%clk 0:02:27]} 3. g3 {[%clk 0:02:23]}  Nc6 {[%clk 0:02:27]} 4. Bg2 {[%clk 0:02:23]}  e5 {[%clk 0:02:27]} 5. Nc3 {[%clk 0:02:17]}  Be7 {[%clk 0:02:20]} 6. e4 {[%clk 0:02:16]}  d4 {[%clk 0:02:13]} 7. Nd5 {[%clk 0:02:13]}  Be6 {[%clk 0:02:14]} 8. O-O {[%clk 0:02:07]}  Nf6 {[%clk 0:02:11]} 9. Re1 {[%clk 0:01:58]}  O-O {[%clk 0:01:46]} 10. Bg5 {[%clk 0:01:47]}  Nxd5 {[%clk 0:01:40]} 11. exd5 {[%clk 0:01:45]}  Bxd5 {[%clk 0:01:40]} 12. Bxe7 {[%clk 0:01:45]}  Qxe7 {[%clk 0:01:38]} 13. Nxe5 {[%clk 0:01:43]}  Nxe5 {[%clk 0:01:32]} 14. Bxd5 {[%clk 0:01:41]}  Qf6 {[%clk 0:01:13]} 15. Qe2 {[%clk 0:01:32]}  Rfe8 {[%clk 0:01:05]} 16. f3 {[%clk 0:01:28]}  Rad8 {[%clk 0:01:01]} 17. Bxb7 {[%clk 0:01:18]}  Rb8 {[%clk 0:00:55]} 18. Qe4 {[%clk 0:00:58]}  Rxb7 {[%clk 0:00:43]} 19. Qxb7 {[%clk 0:00:39]}  Rf8 {[%clk 0:00:14]} 20. Kg2 {[%clk 0:00:35]}  h5 {[%clk 0:00:14]} 21. Qe4 {[%clk 0:00:32]}  Ng6 {[%clk 0:00:14]} 22. h4 {[%clk 0:00:29]}  Qb6 {[%clk 0:00:13]} 23. b3 {[%clk 0:00:25]}  Qb4 {[%clk 0:00:14]} 24. Re2 {[%clk 0:00:23]}  a5 {[%clk 0:00:14]} 25. a4 {[%clk 0:00:20]}  Qb6 {[%clk 0:00:13]} 26. Rf1 {[%clk 0:00:21]}  Qf6 {[%clk 0:00:13]} 27. f4 {[%clk 0:00:21]}  Nxh4+ {[%clk 0:00:09]} 28. gxh4 {[%clk 0:00:20]}  Qxh4 {[%clk 0:00:10]} 29. Qf3 {[%clk 0:00:18]}  Qf6 {[%clk 0:00:08]} 30. Qxh5 {[%clk 0:00:17]}  g6 {[%clk 0:00:08]} 31. Qh6 {[%clk 0:00:17]}  Qf5 {[%clk 0:00:08]} 32. Rh1 {[%clk 0:00:16]}  Qg4+ {[%clk 0:00:08]} 33. Kf2 {[%clk 0:00:16]}  Qxf4+ {[%clk 0:00:00]} 34. Qxf4 {[%clk 0:00:14]} 1-0


[Site "https://www.chess.com"]

[Event "Titled Tuesday Blitz July 25 Late 2023"]
[White "Garakov, Mikhael"]
[Black "Uzcategui Rodriguez, Alejandro"]
[WhiteFideId "4169034"]
[BlackFideId "3903400"]
[WhiteElo "2512"]
[BlackElo "2412"]
[Result "1-0"]
[Round "7"]
[TimeControl "180+2"]
[Date "2023.07.25"]
[WhiteClock "0:00:57"]
[BlackClock "0:00:00"]
[Board "101"]

1. e4 {[%clk 0:03:00]}  e6 {[%clk 0:02:59]} 2. d4 {[%clk 0:02:58]}  d5 {[%clk 0:03:00]} 3. Nc3 {[%clk 0:02:57]}  Nf6 {[%clk 0:02:59]} 4. e5 {[%clk 0:02:55]}  Nfd7 {[%clk 0:02:59]} 5. f4 {[%clk 0:02:56]}  c5 {[%clk 0:03:00]} 6. Nf3 {[%clk 0:02:56]}  Nc6 {[%clk 0:03:00]} 7. Be3 {[%clk 0:02:56]}  a6 {[%clk 0:02:54]} 8. Qd2 {[%clk 0:02:55]}  b5 {[%clk 0:02:54]} 9. a3 {[%clk 0:02:55]}  Qb6 {[%clk 0:02:54]} 10. Ne2 {[%clk 0:02:45]}  c4 {[%clk 0:02:34]} 11. c3 {[%clk 0:02:40]}  a5 {[%clk 0:02:33]} 12. g4 {[%clk 0:02:38]}  Rb8 {[%clk 0:02:27]} 13. f5 {[%clk 0:02:34]}  b4 {[%clk 0:02:24]} 14. axb4 {[%clk 0:02:34]}  axb4 {[%clk 0:02:23]} 15. Nf4 {[%clk 0:02:34]}  bxc3 {[%clk 0:02:15]} 16. bxc3 {[%clk 0:02:35]}  Nd8 {[%clk 0:02:15]} 17. Bh3 {[%clk 0:02:24]}  g6 {[%clk 0:02:04]} 18. fxe6 {[%clk 0:02:15]}  fxe6 {[%clk 0:02:02]} 19. O-O {[%clk 0:02:14]}  Qb2 {[%clk 0:02:00]} 20. Qxb2 {[%clk 0:02:07]}  Rxb2 {[%clk 0:02:01]} 21. Ng5 {[%clk 0:02:03]}  Nb8 {[%clk 0:01:24]} 22. Rfb1 {[%clk 0:02:00]}  Rxb1+ {[%clk 0:01:24]} 23. Rxb1 {[%clk 0:02:01]}  Nbc6 {[%clk 0:01:23]} 24. Bg2 {[%clk 0:01:27]}  Bh6 {[%clk 0:00:28]} 25. h4 {[%clk 0:01:26]}  O-O {[%clk 0:00:13]} 26. Nxd5 {[%clk 0:01:20]}  exd5 {[%clk 0:00:09]} 27. Bxd5+ {[%clk 0:01:21]}  Kg7 {[%clk 0:00:08]} 28. Bxc4 {[%clk 0:01:18]}  Bxg4 {[%clk 0:00:07]} 29. d5 {[%clk 0:01:12]}  Nxe5 {[%clk 0:00:06]} 30. Bd4 {[%clk 0:01:12]}  Rf5 {[%clk 0:00:05]} 31. d6 {[%clk 0:01:08]}  Bxg5 {[%clk 0:00:04]} 32. hxg5 {[%clk 0:01:08]}  Rxg5 {[%clk 0:00:05]} 33. Kf2 {[%clk 0:01:07]}  Kf8 {[%clk 0:00:01]} 34. Rb8 {[%clk 0:01:05]}  Ke8 {[%clk 0:00:01]} 35. Bb5+ {[%clk 0:01:03]}  Bd7 {[%clk 0:00:00]} 36. c4 {[%clk 0:00:57]} 1-0


[Site "https://www.chess.com"]

[Event "Titled Tuesday Blitz July 25 Late 2023"]
[White "Herman, Daniel"]
[Black "Tikhonov, Viacheslav"]
[WhiteFideId "30935008"]
[BlackFideId "44196407"]
[WhiteElo "2410"]
[BlackElo "2493"]
[Result "1-0"]
[Round "7"]
[TimeControl "180+2"]
[Date "2023.07.25"]
[WhiteClock "0:00:32"]
[BlackClock "0:00:07"]
[Board "102"]

1. d4 {[%clk 0:03:00]}  c6 {[%clk 0:02:58]} 2. c4 {[%clk 0:03:01]}  d5 {[%clk 0:02:58]} 3. cxd5 {[%clk 0:03:01]}  cxd5 {[%clk 0:02:58]} 4. Bg5 {[%clk 0:03:02]}  Nc6 {[%clk 0:02:57]} 5. Nc3 {[%clk 0:03:01]}  h6 {[%clk 0:02:56]} 6. Bh4 {[%clk 0:03:00]}  g5 {[%clk 0:02:56]} 7. Bg3 {[%clk 0:03:00]}  Bg7 {[%clk 0:02:53]} 8. e3 {[%clk 0:02:59]}  a6 {[%clk 0:02:50]} 9. Nf3 {[%clk 0:02:48]}  Bf5 {[%clk 0:02:50]} 10. Qb3 {[%clk 0:02:42]}  e6 {[%clk 0:02:35]} 11. Be2 {[%clk 0:02:17]}  Qd7 {[%clk 0:02:24]} 12. Na4 {[%clk 0:02:03]}  Na5 {[%clk 0:02:23]} 13. Qd1 {[%clk 0:01:59]}  Qc6 {[%clk 0:02:17]} 14. Rc1 {[%clk 0:01:57]}  Nc4 {[%clk 0:01:52]} 15. b3 {[%clk 0:01:56]}  b5 {[%clk 0:01:52]} 16. bxc4 {[%clk 0:01:33]}  bxa4 {[%clk 0:01:50]} 17. cxd5 {[%clk 0:01:33]}  Qxd5 {[%clk 0:01:47]} 18. Qxa4+ {[%clk 0:01:33]}  Kf8 {[%clk 0:01:41]} 19. O-O {[%clk 0:01:28]}  Nf6 {[%clk 0:01:40]} 20. Ne5 {[%clk 0:01:25]}  h5 {[%clk 0:01:33]} 21. h4 {[%clk 0:01:21]}  Ne4 {[%clk 0:01:31]} 22. Bf3 {[%clk 0:01:20]}  g4 {[%clk 0:01:30]} 23. Bxe4 {[%clk 0:01:07]}  Bxe4 {[%clk 0:01:30]} 24. Rc5 {[%clk 0:01:05]}  Qb7 {[%clk 0:01:29]} 25. Rc7 {[%clk 0:01:01]}  Qxc7 {[%clk 0:01:12]} 26. Nd7+ {[%clk 0:01:01]}  Qxd7 {[%clk 0:01:08]} 27. Qxd7 {[%clk 0:01:02]}  Bf6 {[%clk 0:01:01]} 28. Rc1 {[%clk 0:00:52]}  Kg7 {[%clk 0:01:01]} 29. Rc7 {[%clk 0:00:50]}  Bg6 {[%clk 0:00:49]} 30. Be5 {[%clk 0:00:43]}  Bxe5 {[%clk 0:00:43]} 31. dxe5 {[%clk 0:00:44]}  Kh6 {[%clk 0:00:42]} 32. Qe7 {[%clk 0:00:35]}  Rhd8 {[%clk 0:00:41]} 33. Qg5+ {[%clk 0:00:33]}  Kg7 {[%clk 0:00:41]} 34. Qf6+ {[%clk 0:00:23]}  Kg8 {[%clk 0:00:36]} 35. Re7 {[%clk 0:00:21]}  Rd1+ {[%clk 0:00:36]} 36. Kh2 {[%clk 0:00:21]}  Rd2 {[%clk 0:00:32]} 37. Rxe6 {[%clk 0:00:20]}  fxe6 {[%clk 0:00:31]} 38. Qxg6+ {[%clk 0:00:20]}  Kh8 {[%clk 0:00:30]} 39. Qxh5+ {[%clk 0:00:21]}  Kg7 {[%clk 0:00:30]} 40. Qxg4+ {[%clk 0:00:21]}  Kh8 {[%clk 0:00:31]} 41. Qh5+ {[%clk 0:00:21]}  Kg7 {[%clk 0:00:30]} 42. Qg5+ {[%clk 0:00:22]}  Kh8 {[%clk 0:00:31]} 43. Qf6+ {[%clk 0:00:23]}  Kh7 {[%clk 0:00:30]} 44. Qxe6 {[%clk 0:00:23]}  Rad8 {[%clk 0:00:27]} 45. Qe7+ {[%clk 0:00:23]}  Kh8 {[%clk 0:00:26]} 46. f4 {[%clk 0:00:22]}  Rg8 {[%clk 0:00:22]} 47. Qf6+ {[%clk 0:00:22]}  Kh7 {[%clk 0:00:22]} 48. Qf5+ {[%clk 0:00:23]}  Kh8 {[%clk 0:00:22]} 49. Qh3 {[%clk 0:00:23]}  Rxa2 {[%clk 0:00:19]} 50. e6 {[%clk 0:00:23]}  a5 {[%clk 0:00:11]} 51. f5 {[%clk 0:00:22]}  a4 {[%clk 0:00:07]} 52. f6 {[%clk 0:00:22]}  a3 {[%clk 0:00:08]} 53. f7 {[%clk 0:00:22]}  Raxg2+ {[%clk 0:00:08]} 54. Qxg2 {[%clk 0:00:22]}  Rxg2+ {[%clk 0:00:09]} 55. Kxg2 {[%clk 0:00:22]}  Kg7 {[%clk 0:00:09]} 56. h5 {[%clk 0:00:22]}  a2 {[%clk 0:00:09]} 57. h6+ {[%clk 0:00:23]}  Kh7 {[%clk 0:00:07]} 58. f8=Q {[%clk 0:00:22]}  a1=Q {[%clk 0:00:07]} 59. Qg7+ {[%clk 0:00:22]}  Qxg7+ {[%clk 0:00:08]} 60. hxg7 {[%clk 0:00:23]}  Kxg7 {[%clk 0:00:08]} 61. Kf3 {[%clk 0:00:24]}  Kf6 {[%clk 0:00:09]} 62. Kf4 {[%clk 0:00:24]}  Ke7 {[%clk 0:00:07]} 63. Ke5 {[%clk 0:00:24]}  Ke8 {[%clk 0:00:07]} 64. Kf6 {[%clk 0:00:25]}  Kf8 {[%clk 0:00:08]} 65. e7+ {[%clk 0:00:25]}  Ke8 {[%clk 0:00:08]} 66. e4 {[%clk 0:00:26]}  Kd7 {[%clk 0:00:05]} 67. Kf7 {[%clk 0:00:27]}  Kc7 {[%clk 0:00:03]} 68. e8=Q {[%clk 0:00:28]}  Kd6 {[%clk 0:00:04]} 69. Qe6+ {[%clk 0:00:28]}  Kc7 {[%clk 0:00:04]} 70. Qd5 {[%clk 0:00:28]}  Kc8 {[%clk 0:00:04]} 71. Qd6 {[%clk 0:00:28]}  Kb7 {[%clk 0:00:04]} 72. Qc5 {[%clk 0:00:29]}  Ka8 {[%clk 0:00:03]} 73. Qb5 {[%clk 0:00:29]}  Ka7 {[%clk 0:00:04]} 74. Ke7 {[%clk 0:00:30]}  Ka8 {[%clk 0:00:05]} 75. Kd7 {[%clk 0:00:30]}  Ka7 {[%clk 0:00:06]} 76. Kc7 {[%clk 0:00:31]}  Ka8 {[%clk 0:00:07]} 77. Qb7# {[%clk 0:00:32]} 1-0


[Site "https://www.chess.com"]

[Event "Titled Tuesday Blitz July 25 Late 2023"]
[White "Yeritsyan, Hayk"]
[Black "Topalov, Aleksandar"]
[WhiteFideId "13307320"]
[BlackFideId "925659"]
[WhiteElo "2469"]
[BlackElo "2361"]
[Result "1-0"]
[Round "7"]
[TimeControl "180+2"]
[Date "2023.07.25"]
[WhiteClock "0:02:41"]
[BlackClock "0:01:50"]
[Board "106"]

1. d4 {[%clk 0:02:57]}  e6 {[%clk 0:02:56]} 2. Nf3 {[%clk 0:02:57]}  f5 {[%clk 0:02:55]} 3. Bf4 {[%clk 0:02:56]}  Nf6 {[%clk 0:02:55]} 4. h3 {[%clk 0:02:56]}  Be7 {[%clk 0:02:51]} 5. e3 {[%clk 0:02:57]}  O-O {[%clk 0:02:51]} 6. c3 {[%clk 0:02:58]}  d6 {[%clk 0:02:44]} 7. Be2 {[%clk 0:02:57]}  h6 {[%clk 0:02:44]} 8. O-O {[%clk 0:02:57]}  Ne4 {[%clk 0:02:40]} 9. Bh2 {[%clk 0:02:57]}  Bf6 {[%clk 0:02:37]} 10. Nbd2 {[%clk 0:02:57]}  Nxd2 {[%clk 0:02:36]} 11. Nxd2 {[%clk 0:02:57]}  Nc6 {[%clk 0:02:36]} 12. e4 {[%clk 0:02:55]}  e5 {[%clk 0:02:31]} 13. dxe5 {[%clk 0:02:49]}  Nxe5 {[%clk 0:02:26]} 14. exf5 {[%clk 0:02:48]}  Bxf5 {[%clk 0:02:22]} 15. Nf3 {[%clk 0:02:49]}  Nxf3+ {[%clk 0:02:08]} 16. Bxf3 {[%clk 0:02:50]}  Rb8 {[%clk 0:02:06]} 17. Qd5+ {[%clk 0:02:48]}  Kh8 {[%clk 0:01:50]} 18. Qxf5 {[%clk 0:02:41]} 1-0


[Site "https://www.chess.com"]

[Event "Titled Tuesday Blitz July 25 Late 2023"]
[White "SilverCityIndigo"]
[Black "Xia, Brandon"]
[BlackFideId "30921880"]
[WhiteElo "2442"]
[BlackElo "2351"]
[Result "1-0"]
[Round "7"]
[TimeControl "180+2"]
[Date "2023.07.25"]
[WhiteClock "0:00:11"]
[BlackClock "0:00:10"]
[Board "108"]

1. a3 {[%clk 0:03:00]}  g6 {[%clk 0:02:59]} 2. h4 {[%clk 0:03:00]}  Nf6 {[%clk 0:02:57]} 3. h5 {[%clk 0:03:00]}  Nxh5 {[%clk 0:02:57]} 4. e4 {[%clk 0:03:00]}  d5 {[%clk 0:02:55]} 5. Rxh5 {[%clk 0:02:59]}  gxh5 {[%clk 0:02:54]} 6. Qxh5 {[%clk 0:02:59]}  dxe4 {[%clk 0:02:51]} 7. Bc4 {[%clk 0:02:58]}  e6 {[%clk 0:02:51]} 8. Nc3 {[%clk 0:02:58]}  Nc6 {[%clk 0:02:35]} 9. Nxe4 {[%clk 0:02:57]}  Bd7 {[%clk 0:02:32]} 10. d3 {[%clk 0:02:56]}  Nd4 {[%clk 0:02:26]} 11. Qe5 {[%clk 0:02:46]}  Nxc2+ {[%clk 0:02:23]} 12. Kd1 {[%clk 0:02:46]}  Nxa1 {[%clk 0:02:05]} 13. Bg5 {[%clk 0:02:41]}  Qxg5 {[%clk 0:01:49]} 14. Nxg5 {[%clk 0:02:32]}  Rg8 {[%clk 0:01:42]} 15. Nxh7 {[%clk 0:02:31]}  O-O-O {[%clk 0:01:37]} 16. b3 {[%clk 0:01:59]}  Rxg2 {[%clk 0:01:27]} 17. Nf3 {[%clk 0:01:40]}  Bg7 {[%clk 0:01:27]} 18. Qa5 {[%clk 0:01:27]}  Kb8 {[%clk 0:01:20]} 19. Nhg5 {[%clk 0:01:25]}  Bc6 {[%clk 0:01:18]} 20. Ke2 {[%clk 0:01:25]}  b6 {[%clk 0:00:57]} 21. Qd2 {[%clk 0:01:17]}  Rd7 {[%clk 0:00:46]} 22. Kf1 {[%clk 0:01:15]}  Bxf3 {[%clk 0:00:42]} 23. Nxf3 {[%clk 0:01:14]}  Rg6 {[%clk 0:00:42]} 24. a4 {[%clk 0:01:03]}  Bf6 {[%clk 0:00:33]} 25. a5 {[%clk 0:00:57]}  Rd8 {[%clk 0:00:21]} 26. Qa2 {[%clk 0:00:38]}  Rh8 {[%clk 0:00:19]} 27. Ke2 {[%clk 0:00:35]}  Rh1 {[%clk 0:00:18]} 28. Bb5 {[%clk 0:00:28]}  Rc1 {[%clk 0:00:18]} 29. Qa3 {[%clk 0:00:22]}  Rc2+ {[%clk 0:00:18]} 30. Ke3 {[%clk 0:00:21]}  Rc5 {[%clk 0:00:18]} 31. Qa4 {[%clk 0:00:17]}  Nc2+ {[%clk 0:00:18]} 32. Kd2 {[%clk 0:00:17]}  Rg2 {[%clk 0:00:17]} 33. Ke2 {[%clk 0:00:12]}  Rf5 {[%clk 0:00:13]} 34. axb6 {[%clk 0:00:11]}  cxb6 {[%clk 0:00:11]} 35. Bc6 {[%clk 0:00:12]}  Nd4+ {[%clk 0:00:12]} 36. Nxd4 {[%clk 0:00:11]}  Rfxf2+ {[%clk 0:00:12]} 37. Ke3 {[%clk 0:00:11]}  Bxd4+ {[%clk 0:00:11]} 38. Kxd4 {[%clk 0:00:11]}  Rf4+ {[%clk 0:00:11]} 39. Be4 {[%clk 0:00:10]}  Rg8 {[%clk 0:00:11]} 40. Qc6 {[%clk 0:00:10]}  Rd8+ {[%clk 0:00:12]} 41. Ke3 {[%clk 0:00:10]}  Rxe4+ {[%clk 0:00:12]} 42. Kxe4 {[%clk 0:00:10]}  Rd5 {[%clk 0:00:12]} 43. Qe8+ {[%clk 0:00:09]}  Kb7 {[%clk 0:00:12]} 44. Qxf7+ {[%clk 0:00:10]}  Ka6 {[%clk 0:00:13]} 45. Qxe6 {[%clk 0:00:11]}  Ra5 {[%clk 0:00:14]} 46. Qc4+ {[%clk 0:00:11]}  Rb5 {[%clk 0:00:10]} 47. b4 {[%clk 0:00:11]} 1-0


[Site "https://www.chess.com"]